fUSD/lending_fUSD_20240627
["ID","MTS","AMOUNT","RATE_DAILY","PERIOD"]
[330486081,1719496243826,-291.0,0.00017507,2]
[330486083,1719496243836,-1312.48,0.00017507,2]
[330486085,1719496243845,-5167.0,0.00017507,2]
[330486087,1719496243855,-1196.0,0.00017507,2]
[330486089,1719496243863,-1661.0,0.00017507,2]
[330486091,1719496243874,-37314.299,0.00017507,2]
[330486093,1719496243884,-5000.0,0.00017533,2]
[330486095,1719496243894,-432.0,0.000178,3]
[330486097,1719496243903,-442.11,0.00017848,2]
[330486099,1719496243913,-290.85232729,0.00017896,2]
[330486101,1719496243922,-150.0,0.00018,2]
[330486103,1719496243931,-195.06440548,0.00018,2]
[330486105,1719496243941,-195.06440548,0.00018,2]
[330486107,1719496243951,-195.06440548,0.00018,2]
[330486109,1719496243961,-195.06440548,0.00018,2]
[330486111,1719496243971,-195.06440548,0.00018,2]
[330486113,1719496243980,-195.06440548,0.00018,2]
[330486115,1719496243990,-195.06440548,0.00018,2]
[330486117,1719496243999,-195.06440548,0.00018,2]
[330486119,1719496244008,-195.06440548,0.00018,2]
[330486122,1719496244018,-195.06440548,0.00018,2]
[330486124,1719496244030,-195.06440548,0.00018,2]
[330486126,1719496244039,-195.06440548,0.00018,2]
[330486128,1719496244049,-195.06440548,0.00018,2]
[330486130,1719496244058,-195.06440548,0.00018,2]
[330486132,1719496244068,-195.06440548,0.00018,2]
[330486134,1719496244078,-195.06440548,0.00018,2]
[330486136,1719496244088,-195.06440548,0.00018,2]
[330486138,1719496244097,-297.2528305,0.00018548,2]
[330486140,1719496244107,-650.83910401,0.00018759,2]
[330486142,1719496244116,-254.54281326,0.00018764,2]
[330486144,1719496244126,-193.46230589,0.00018764,2]
[330486146,1719496244136,-438.00098198,0.00018864,2]
[330486148,1719496244146,-290.85232729,0.00018894,2]
[330486150,1719496244156,-306.26,0.00018899,2]
[330486152,1719496244166,-208.22084063,0.00018899,2]
[330486154,1719496244176,-226.97665617,0.00019069,2]
[330486156,1719496244186,-250.0,0.00019178,2]
[330486158,1719496244195,-625.33216649,0.00019229,2]
[330486160,1719496244206,-520.06850352,0.00019725,2]
[330486163,1719496244215,-202.05047868,0.00019863,2]
[330486165,1719496244225,-290.85232729,0.00019893,2]
[330486167,1719496244234,-2003.58276438,0.0001999,2]
[330486169,1719496244244,-550.27794371,0.0002,2]
[330486171,1719496244254,-187.80837157,0.0002,2]
[330486173,1719496244264,-150.0,0.0002009,2]
[330486175,1719496244273,-527.66,0.0002009,2]
[330486177,1719496244283,-423.79,0.0002009,2]
[330486179,1719496244293,-442.11,0.00020112,2]
[330486181,1719496244303,-181.15,0.00020117,2]
[330486183,1719496244312,-1000.0,0.00020525,2]
[330486185,1719496244321,-159.79,0.00020563,2]
[330486187,1719496244331,-662.057589,0.000208,3]
[330486189,1719496244340,-290.85232729,0.00020892,2]
[330486190,1719496244350,-108536.37883,0.000209,3]
[330486191,1719496244359,-174.99116883,0.00020912,2]
[330486192,1719496244369,-3742.63375276,0.0002099,3]
[330486193,1719496244381,-1250.0,0.00021,2]
[330486194,1719496244391,-202.785526,0.00021,2]
[330486195,1719496244401,-1082.54439024,0.0002107,2]
[330486196,1719496244411,-1075.26194663,0.0002107,2]
[330486197,1719496244420,-1125.35655983,0.0002107,2]
[330486198,1719496244432,-321.77405077,0.0002107,2]
[330486199,1719496244444,-345.18093938,0.0002121,2]
[330486200,1719496244454,-174.08619548,0.00021242,2]
[330486201,1719496244464,-159.12336649,0.000213,2]
[330486202,1719496244473,-500.0,0.00021326,2]
[330486203,1719496244483,-200.0,0.00021326,2]
[330486204,1719496244493,-11227.9012583,0.00021332,3]
[330486205,1719496244502,-20157.80205408,0.00021342,2]
[330486206,1719496244512,-150.0,0.00021342,2]
[330486207,1719496244522,-527.96,0.00021342,2]
[330486208,1719496244531,-150.0,0.00021342,2]
[330486209,1719496244541,-150.0,0.00021342,2]
[330486210,1719496244551,-164.7,0.00021342,2]
[330486211,1719496244561,-150.0,0.00021342,2]
[330486212,1719496244570,-150.0,0.00021342,2]
[330486213,1719496244579,-150.0,0.00021342,2]
[330486214,1719496244589,-354.51,0.00021342,2]
[330486215,1719496244598,-150.0,0.00021342,2]
[330486216,1719496244609,-423.92,0.00021342,2]
[330486217,1719496244619,-527.96,0.00021342,2]
[330486218,1719496244630,-354.51,0.00021342,2]
[330486219,1719496244641,-150.0,0.00021342,2]
[330486220,1719496244653,-150.0,0.00021342,2]
[330486221,1719496244662,-150.0,0.00021342,2]
[330486222,1719496244672,-150.0,0.00021342,2]
[330486223,1719496244682,-150.0,0.00021342,2]
[330486224,1719496244692,-423.92,0.00021342,2]
[330486225,1719496244701,-164.7,0.00021342,2]
[330486226,1719496244711,-150.0,0.00021342,2]
[330486227,1719496244723,-150.0,0.00021342,2]
[330486228,1719496244733,-527.96,0.00021342,2]
[330486229,1719496244743,-164.7,0.00021342,2]
[330486230,1719496244753,-150.0,0.00021342,2]
[330486231,1719496244763,-150.0,0.00021342,2]
[330486232,1719496244772,-354.51,0.00021342,2]
[330486233,1719496244783,-423.92,0.00021342,2]
[330486234,1719496244794,-150.0,0.00021342,2]
[330486235,1719496244804,-150.0,0.00021342,2]
[330486236,1719496244813,-527.96,0.00021342,2]
[330486237,1719496244823,-150.0,0.00021342,2]
[330486238,1719496244832,-150.0,0.00021342,2]
[330486239,1719496244841,-164.7,0.00021342,2]
[330486240,1719496244850,-423.92,0.00021342,2]
[330486241,1719496244860,-150.0,0.00021342,2]
[330486242,1719496244869,-150.0,0.00021342,2]
[330486243,1719496244880,-150.0,0.00021342,2]
[330486244,1719496244890,-150.0,0.00021342,2]
[330486245,1719496244900,-354.51,0.00021342,2]
[330486246,1719496244910,-527.96,0.00021342,2]
[330486247,1719496244919,-150.0,0.00021342,2]
[330486248,1719496244929,-423.92,0.00021342,2]
[330486249,1719496244939,-150.0,0.00021342,2]
[330486250,1719496244949,-150.0,0.00021342,2]
[330486251,1719496244959,-150.0,0.00021342,2]
[330486252,1719496244969,-164.7,0.00021342,2]
[330486253,1719496244978,-354.51,0.00021342,2]
[330486254,1719496244988,-423.92,0.00021342,2]
[330486255,1719496244997,-300.0,0.00021342,2]
[330486256,1719496245006,-353.79,0.00021342,2]
[330486257,1719496245016,-300.0,0.00021342,2]
[330486258,1719496245026,-150.0,0.00021342,2]
[330486259,1719496245035,-164.7,0.00021342,2]
[330486260,1719496245046,-300.0,0.00021342,2]
[330486261,1719496245056,-527.96,0.00021342,2]
[330486262,1719496245066,-150.0,0.00021342,2]
[330486263,1719496245076,-150.0,0.00021342,2]
[330486264,1719496245086,-527.96,0.00021342,2]
[330486265,1719496245096,-423.92,0.00021342,2]
[330486266,1719496245106,-354.51,0.00021342,2]
[330486267,1719496245115,-164.7,0.00021342,2]
[330486268,1719496245126,-527.96,0.00021342,2]
[330486269,1719496245136,-423.92,0.00021342,2]
[330486270,1719496245146,-354.51,0.00021342,2]
[330486271,1719496245156,-150.0,0.00021342,2]
[330486272,1719496245165,-164.7,0.00021342,2]
[330486273,1719496245175,-150.0,0.00021342,2]
[330486274,1719496245185,-423.92,0.00021342,2]
[330486275,1719496245195,-163.8,0.00021342,2]
[330486276,1719496245205,-353.25,0.00021342,2]
[330486277,1719496245216,-527.96,0.00021342,2]
[330486278,1719496245226,-527.96,0.00021342,2]
[330486279,1719496245235,-421.42,0.00021342,2]
[330486280,1719496245245,-524.5,0.00021342,2]
[330486281,1719496245254,-3742.63375276,0.0002137,3]
[330486282,1719496245264,-165.13256328,0.0002139,2]
[330486283,1719496245274,-3742.63375276,0.0002139,3]
[330486284,1719496245284,-215.0,0.000214,2]
[330486285,1719496245294,-1015.0,0.000214,9]
[330486286,1719496245304,-318.76,0.000214,2]
[330486287,1719496245314,-995.38,0.000214,2]
[330486288,1719496245323,-277.3,0.0002142,2]
[330486289,1719496245333,-3742.63375276,0.00021487,3]
[330486290,1719496245342,-22455.8025166,0.0002149,3]
[330486291,1719496245352,-2695.3975297,0.0002149,2]
[330486292,1719496245361,-1530.931674,0.0002149,2]
[330486293,1719496245372,-1152.299607,0.0002149,2]
[330486294,1719496245382,-26198.4362693,0.0002149,3]
[330486295,1719496245391,-55206.442563,0.0002149,2]
[330486296,1719496245401,-2273.4980029,0.0002149,2]
[330486297,1719496245411,-209.45341844,0.00021497,2]
[330486298,1719496245421,-5912.01004503,0.00021497,2]
[330486299,1719496245432,-507.34346,0.00021498,2]
[330486300,1719496245443,-287.11337958,0.00021499,2]
[330486301,1719496245453,-253.77955706,0.00021499,2]
[330486302,1719496245463,-81540.72107594,0.000215,7]
[330486303,1719496245473,-1757076.70739404,0.000215,5]
[330486304,1719496245483,-151.62624684,0.000215,2]
[330486305,1719496245492,-142921.6982258,0.000215,4]
[330486306,1719496245502,-346.0,0.0002155,3]
[330486307,1719496245512,-165.13256328,0.00021604,2]
[330486308,1719496245522,-162.45,0.00021644,2]
[330486309,1719496245531,-538.14,0.00021644,2]
[330486310,1719496245541,-155.38,0.00021644,2]
[330486311,1719496245551,-40031.50400453,0.00021679,2]
[330486312,1719496245560,-2224.76951092,0.00021754,2]
[330486313,1719496245582,-727.45920443,0.0002176,2]
[330486314,1719496245597,-2017.10975651,0.00021787,2]
[330486315,1719496245610,-326.96863234,0.00021799,2]
[330486316,1719496245625,-289.74877487,0.000218,2]
[330486317,1719496245645,-490.0,0.000218,4]
[330486318,1719496245664,-191.0,0.000218,4]
[330486319,1719496245678,-995.38,0.000218,2]
[330486320,1719496245690,-165.13256328,0.00021819,2]
[330486321,1719496245704,-159.50287503,0.00021825,2]
[330486322,1719496245720,-150.0,0.0002185,2]
[330486323,1719496245736,-806479.96718645,0.0002188,2]
[330486324,1719496245751,-251809.04967261,0.0002188,2]
[330486325,1719496245767,-290.85232729,0.00021891,2]
[330486326,1719496245780,-10633.63457295,0.000219,2]
[330486327,1719496245795,-10535.13157007,0.000219,2]
[330486328,1719496245810,-1015.0,0.000219,9]
[330486329,1719496245824,-266.22,0.00021918,2]
[330486330,1719496245838,-1231.01,0.00021918,2]
[330486331,1719496245855,-150.0,0.00021918,2]
[330486332,1719496245870,-150.0,0.00021918,2]
[330486333,1719496245883,-157.09743161,0.00021989,10]
[330486334,1719496245894,-150.0,0.00021989,10]
[330486337,1719496245906,-6175.72134159,0.0002199,2]
[330486340,1719496245922,-151.0,0.00021993,2]
[330486342,1719496245932,-150.0,0.00021998,2]
[330486343,1719496245944,-162.62557615,0.00021999,10]
[330486344,1719496245958,-500.0,0.00022,2]
[330486345,1719496245970,-500.0,0.00022,2]
[330486346,1719496245981,-500.0,0.00022,2]
[330486348,1719496245993,-500.0,0.00022,2]
[330486350,1719496246006,-500.0,0.00022,2]
[330486351,1719496246018,-500.0,0.00022,2]
[330486352,1719496246029,-10000.0,0.00022,2]
[330486353,1719496246042,-3200.0,0.00022,2]
[330486354,1719496246073,-241.05988767,0.00022,2]
[330486355,1719496246086,-1064.75893204,0.00022,2]
[330486356,1719496246099,-3309.57939034,0.00022,2]
[330486357,1719496246112,-636.0,0.00022,2]
[330486358,1719496246126,-1000.0,0.00022,2]
[330486359,1719496246140,-1000.0,0.00022,2]
[330486360,1719496246153,-509.0,0.00022,2]
[330486361,1719496246166,-490.0,0.00022,4]
[330486362,1719496246178,-191.0,0.00022,4]
[330486363,1719496246190,-2000.0,0.00022,2]
[330486364,1719496246203,-257.0,0.00022,2]
[330486365,1719496246215,-231.16233097,0.00022,2]
[330486366,1719496246228,-160.0,0.00022,2]
[330486367,1719496246242,-257.0,0.00022,2]
[330486368,1719496246254,-150.0,0.00022,2]
[330486369,1719496246268,-214.0,0.00022,2]
[330486370,1719496246280,-214.0,0.00022,2]
[330486371,1719496246294,-214.0,0.00022,2]
[330486372,1719496246307,-214.0,0.00022,2]
[330486373,1719496246320,-207.0,0.00022,2]
[330486374,1719496246333,-2000.0,0.00022,2]
[330486375,1719496246346,-172.0,0.00022,2]
[330486376,1719496246358,-166.66666666,0.00022,2]
[330486377,1719496246373,-161.10149006,0.00022002,2]
[330486378,1719496246386,-573.12946313,0.00022002,2]
[330486379,1719496246399,-308.56609934,0.00022018,2]
[330486380,1719496246412,-559.50311752,0.00022032,2]
[330486381,1719496246425,-165.13256328,0.00022033,2]
[330486382,1719496246439,-684.25592512,0.00022033,2]
[330486383,1719496246452,-154.31591807,0.00022037,2]
[330486384,1719496246465,-684.25592512,0.00022047,2]
[330486385,1719496246477,-1318.73233537,0.00022049,2]
[330486386,1719496246490,-573.12946313,0.00022071,2]
[330486387,1719496246502,-914.59679741,0.00022106,2]
[330486388,1719496246515,-158.5976384,0.00022108,2]
[330486389,1719496246527,-226.08205315,0.0002211,2]
[330486390,1719496246540,-186.5185892,0.00022111,2]
[330486391,1719496246552,-684.25592512,0.00022114,2]
[330486392,1719496246565,-159.50187486,0.00022117,2]
[330486393,1719496246577,-181.26019552,0.00022128,2]
[330486394,1719496246590,-4340.93470623,0.00022135,2]
[330486395,1719496246603,-154.32704986,0.00022165,2]
[330486396,1719496246616,-183.47590807,0.00022208,2]
[330486397,1719496246629,-448.11966388,0.00022222,2]
[330486398,1719496246643,-204.39307932,0.00022239,2]
[330486399,1719496246657,-166.66666666,0.0002224,2]
[330486400,1719496246669,-165.13256328,0.00022247,2]
[330486401,1719496246682,-684.25592512,0.00022265,2]
[330486402,1719496246694,-684.25592512,0.00022279,2]
[330486403,1719496246707,-240.15837957,0.00022283,2]
[330486404,1719496246720,-2032.23436488,0.00022283,2]
[330486405,1719496246738,-308.56609934,0.00022301,2]
[330486406,1719496246751,-684.25592512,0.00022316,2]
[330486407,1719496246764,-448.11966388,0.00022341,2]
[330486408,1719496246777,-1011.80312692,0.00022341,2]
[330486409,1719496246789,-250.92643156,0.00022348,2]
[330486410,1719496246801,-914.59679741,0.0002236,2]
[330486411,1719496246813,-442.11,0.00022376,2]
[330486412,1719496246825,-154.78229853,0.00022384,2]
[330486413,1719496246837,-1015.0,0.000224,10]
[330486414,1719496246851,-152.918136,0.00022415,2]
[330486415,1719496246863,-308.56609934,0.00022426,2]
[330486416,1719496246877,-165.13256328,0.00022461,2]
[330486417,1719496246890,-152.918136,0.0002247,2]
[330486418,1719496246902,-573.12946313,0.00022473,2]
[330486419,1719496246915,-2900.0,0.000225,15]
[330486420,1719496246927,-1000.0,0.000225,2]
[330486421,1719496246940,-573.12946313,0.00022505,2]
[330486422,1719496246952,-2032.23436488,0.00022507,2]
[330486423,1719496246964,-150.0,0.00022511,2]
[330486424,1719496246976,-150.0,0.00022511,2]
[330486425,1719496246988,-559.50311752,0.00022519,2]
[330486426,1719496247002,-158.5976384,0.00022522,2]
[330486427,1719496247014,-166.66666666,0.00022533,2]
[330486428,1719496247027,-219.17517859,0.00022559,2]
[330486429,1719496247039,-1177.63832614,0.00022571,2]
[330486430,1719496247052,-995.38,0.00022585,2]
[330486431,1719496247064,-4340.93470623,0.00022595,2]
[330486432,1719496247076,-684.25592512,0.00022611,2]
[330486433,1719496247088,-166.66666666,0.00022644,2]
[330486434,1719496247102,-154.78229853,0.00022673,2]
[330486435,1719496247115,-165.13256328,0.00022676,2]
[330486436,1719496247130,-914.59679741,0.00022686,2]
[330486437,1719496247142,-914.59679741,0.0002272,2]
[330486438,1719496247155,-308.56609934,0.00022728,2]
[330486439,1719496247167,-559.50311752,0.00022732,2]
[330486440,1719496247180,-158.09208514,0.00022742,2]
[330486441,1719496247193,-500.0,0.00022748,14]
[330486442,1719496247205,-1177.63832614,0.00022791,2]
[330486443,1719496247217,-2000.0,0.000228,2]
[330486444,1719496247229,-2000.0,0.000228,2]
[330486445,1719496247242,-2000.0,0.000228,2]
[330486446,1719496247254,-2000.0,0.000228,2]
[330486447,1719496247266,-2000.0,0.000228,2]
[330486448,1719496247278,-2000.0,0.000228,2]
[330486449,1719496247290,-2016.4441,0.000228,2]
[330486450,1719496247303,-2000.0,0.000228,2]
[330486451,1719496247316,-20210.0,0.000228,2]
[330486452,1719496247328,-2000.0,0.000228,2]
[330486453,1719496247341,-2000.0,0.000228,2]
[330486454,1719496247353,-186.5185892,0.000228,2]
[330486455,1719496247366,-448.11966388,0.00022806,2]
[330486456,1719496247379,-1002.61333709,0.0002285,2]
[330486457,1719496247391,-186.5185892,0.00022852,2]
[330486458,1719496247404,-301.90020492,0.0002286,2]
[330486459,1719496247417,-191.10793572,0.00022871,2]
[330486460,1719496247430,-1318.73233537,0.00022882,2]
[330486461,1719496247443,-573.12946313,0.00022889,2]
[330486462,1719496247455,-165.13256328,0.0002289,2]
[330486463,1719496247468,-290.85232729,0.0002289,2]
[330486464,1719496247480,-154.32704986,0.00022891,2]
[330486465,1719496247492,-1015.0,0.000229,11]
[330486466,1719496247504,-109310.0802746,0.000229,2]
[330486467,1719496247516,-1318.73233537,0.0002293,2]
[330486468,1719496247529,-448.11966388,0.00022936,2]
[330486469,1719496247541,-151.00102107,0.00022938,2]
[330486470,1719496247553,-42772.93970202,0.0002297,2]
[330486471,1719496247565,-2581.0853012,0.00022974,2]
[330486472,1719496247577,-2466.7730727,0.00022974,2]
[330486473,1719496247589,-2352.4608442,0.00022974,2]
[330486474,1719496247601,-1466.0046235,0.00022974,2]
[330486475,1719496247613,-1401.0775731,0.00022974,2]
[330486476,1719496247625,-1336.1505227,0.00022974,2]
[330486477,1719496247642,-1103.4304014,0.00022974,2]
[330486478,1719496247655,-1054.5611958,0.00022974,2]
[330486479,1719496247666,-1005.6919902,0.00022974,2]
[330486480,1719496247679,-52865.1287465,0.00022974,2]
[330486481,1719496247692,-50523.8149299,0.00022974,2]
[330486482,1719496247704,-48182.5011134,0.00022974,2]
[330486483,1719496247721,-2177.078599,0.00022974,2]
[330486484,1719496247733,-2080.659195,0.00022974,2]
[330486485,1719496247744,-1984.2397911,0.00022974,2]
[330486486,1719496247756,-186.5185892,0.00022976,2]
[330486487,1719496247768,-995.38,0.00022985,2]
[330486488,1719496247780,-2998234.79359975,0.0002299,5]
[330486489,1719496247800,-356107.68679245,0.0002299,5]
[330486490,1719496247817,-309449.54805305,0.0002299,5]
[330486491,1719496247832,-22224.08937347,0.0002299,5]
[330486492,1719496247847,-24818.33254271,0.0002299,5]
[330486493,1719496248048,-327.12129972,0.00017507,2]
[330486494,1719496248063,-687.85090234,0.00017507,2]
[330486495,1719496248078,-53.02779794,0.00017507,2]
[330486496,1719496248091,-195.06440548,0.00018,2]
[330486497,1719496248103,-195.06440548,0.00018,2]
[330486498,1719496248115,-3923.63778311,0.0002299,5]
[330486499,1719496248133,-309.71734022,0.0002299,5]
[330486500,1719496248147,-485.85127002,0.0002299,5]
[330486501,1719496250254,-195.06440548,0.00018,2]
[330486502,1719496250264,-195.06440548,0.00018,2]
[330486503,1719496250274,-195.06440548,0.00018,2]
[330486504,1719496250284,-195.06440548,0.00018,2]
[330486505,1719496250293,-195.06440548,0.00018,2]
[330486506,1719496250303,-86.43303106,0.00018,2]
[330486507,1719496250315,-108.63137442,0.00018,2]
[330486508,1719496250325,-195.06440548,0.00018,2]
[330486509,1719496250335,-195.06440548,0.00018,2]
[330486510,1719496250344,-128.10465907,0.0001999,2]
[330486511,1719496250355,-871.89534093,0.0001999,2]
[330486512,1719496250365,-109.52579712,0.0002299,5]
[330486513,1719496250378,-307689.74632912,0.0002299,5]
[330486514,1719496250492,-195.06440548,0.00018,2]
[330486515,1719496250501,-195.06440548,0.00018,2]
[330486516,1719496250511,-847.77118904,0.0002299,5]
[330486517,1719496250524,-78023.08437567,0.0002299,5]
[330486518,1719496265916,15907.0395,0.00010998,2]
[330486519,1719496349921,1533.84182686,0.00010998,2]
[330486520,1719496356031,181.06228476,0.00010998,2]
[330486521,1719496461030,265.54307448,0.00010998,2]
[330486528,1719496794127,155.0,0.00010998,2]
[330486604,1719496873124,155.76371805,0.00010998,2]
[330486605,1719497030554,-2000.0,0.00030949,30]
[330486606,1719497030591,-2000.0,0.00030949,30]
[330486607,1719497030630,-2000.0,0.00030949,30]
[330486608,1719497030671,-2000.0,0.00030949,30]
[330486609,1719497030713,-2000.0,0.00030949,30]
[330486610,1719497030754,-384.0,0.00030949,30]
[330486611,1719497030796,-152.88456862,0.00030949,30]
[330486612,1719497030837,-587.7851358,0.00030949,30]
[330486613,1719497030873,-7604.33593403,0.00030949,30]
[330486614,1719497030913,-212.0,0.00030949,30]
[330486615,1719497030954,-1000.0,0.00030949,30]
[330486616,1719497030992,-523.41213345,0.00030949,120]
[330486617,1719497031031,-5252.764101,0.00030949,30]
[330486618,1719497042159,-668.10820583,0.00025,30]
[330486619,1719497042212,-200.18967245,0.00027397,60]
[330486620,1719497042275,-150.0,0.00030392,120]
[330486621,1719497042313,-150.0,0.00030552,120]
[330486622,1719497042370,-150.0,0.00031246,120]
[330486623,1719497042407,-150.0,0.00032326,120]
[330486624,1719497042445,-1208.0,0.00032505,30]
[330486625,1719497042484,-1231.01,0.00033151,120]
[330486626,1719497042525,-225.76189875,0.00034,120]
[330486627,1719497042564,-150.0,0.00034043,120]
[330486628,1719497042603,-150.0,0.00034548,120]
[330486629,1719497042647,-150.0,0.00035939,120]
[330486630,1719497042690,-150.0,0.00036321,120]
[330486631,1719497042730,-150.0,0.00037039,120]
[330486632,1719497042770,-150.0,0.00037563,120]
[330486633,1719497042808,-150.0,0.00038088,120]
[330486634,1719497042846,-150.0,0.00038837,120]
[330486635,1719497042886,-50000.0,0.0004,30]
[330486636,1719497042926,-151.0,0.0004,120]
[330486637,1719497042964,-151.0,0.0004,120]
[330486638,1719497043001,-420.0,0.0004,120]
[330486639,1719497043037,-345.52946819,0.0004,120]
[330486640,1719497043074,-3057.97672743,0.0004,120]
[330486641,1719497043110,-301463.96460433,0.0004,120]
[330486642,1719497043148,-150.0,0.00040001,120]
[330486643,1719497043186,-150.0,0.00040073,120]
[330486644,1719497043225,-150.0,0.00040217,120]
[330486645,1719497043263,-151.0,0.00040658,120]
[330486646,1719497043300,-2120.0,0.000407,81]
[330486647,1719497043342,-50000.0,0.00041,31]
[330486648,1719497043380,-500.0,0.00041,120]
[330486649,1719497043421,-152.0,0.00041041,31]
[330486650,1719497043491,-500.0,0.00041095,30]
[330486651,1719497043550,-1474.09,0.00041095,120]
[330486652,1719497043599,-500.0,0.00041095,120]
[330486653,1719497043642,-500.0,0.00041095,120]
[330486654,1719497043692,-500.0,0.00041095,30]
[330486655,1719497043766,-150.0,0.00041118,30]
[330486656,1719497043806,-370.27180326,0.00041141,30]
[330486657,1719497043845,-180.40202542,0.00041141,30]
[330486658,1719497043886,-150.0,0.00041171,30]
[330486659,1719497043928,-151.0,0.00041178,120]
[330486660,1719497043964,-150.0,0.00041181,30]
[330486661,1719497044004,-370.27180326,0.00041187,30]
[330486662,1719497044040,-180.40202542,0.00041187,30]
[330486663,1719497044077,-150.0,0.00041224,30]
[330486664,1719497044114,-370.27180326,0.00041232,30]
[330486665,1719497044152,-180.40202542,0.00041232,30]
[330486666,1719497044189,-150.0,0.00041277,30]
[330486667,1719497044464,-370.27180326,0.00041278,30]
[330486668,1719497044532,-180.40202542,0.00041278,30]
[330486669,1719497044571,-150.0,0.00041285,30]
[330486670,1719497044607,-151.0,0.00041315,120]
[330486671,1719497044647,-370.27180326,0.00041324,30]
[330486672,1719497044687,-180.40202542,0.00041324,30]
[330486673,1719497044728,-150.0,0.0004133,30]
[330486674,1719497044767,-150.0,0.00041362,30]
[330486675,1719497044828,-500.0,0.00041369,30]
[330486676,1719497044880,-1474.09,0.00041369,120]
[330486677,1719497044927,-500.0,0.00041369,120]
[330486678,1719497044967,-500.0,0.00041369,120]
[330486679,1719497045019,-500.0,0.00041369,30]
[330486680,1719497045096,-370.27180326,0.00041369,30]
[330486681,1719497045135,-180.40202542,0.00041369,30]
[330486682,1719497045174,-150.0,0.00041383,30]
[330486683,1719497045213,-370.27180326,0.00041415,30]
[330486684,1719497045251,-180.40202542,0.00041415,30]
[330486685,1719497045289,-150.0,0.00041436,30]
[330486686,1719497045327,-370.27180326,0.00041461,30]
[330486687,1719497045366,-180.40202542,0.00041461,30]
[330486688,1719497045408,-150.0,0.00041489,30]
[330486689,1719497045447,-370.27180326,0.00041506,30]
[330486690,1719497045487,-180.40202542,0.00041506,30]
[330486691,1719497045525,-150.0,0.00041543,30]
[330486692,1719497045563,-150.0,0.00041543,30]
[330486693,1719497045603,-150.0,0.00041543,30]
[330486694,1719497045643,-370.27180326,0.00041552,30]
[330486695,1719497045683,-180.40202542,0.00041552,30]
[330486696,1719497045724,-500.0,0.00041593,30]
[330486697,1719497045764,-150.0,0.00041596,30]
[330486698,1719497045803,-370.27180326,0.00041597,30]
[330486699,1719497045846,-180.40202542,0.00041597,30]
[330486700,1719497045889,-370.27180326,0.00041643,30]
[330486701,1719497045931,-180.40202542,0.00041643,30]
[330486702,1719497045993,-500.0,0.00041643,30]
[330486703,1719497046052,-1474.09,0.00041643,120]
[330486704,1719497046104,-500.0,0.00041643,120]
[330486705,1719497046151,-500.0,0.00041643,120]
[330486706,1719497046200,-500.0,0.00041643,30]
[330486707,1719497046279,-150.0,0.00041649,30]
[330486708,1719497046319,-370.27180326,0.00041689,30]
[330486709,1719497046359,-180.40202542,0.00041689,30]
[330486710,1719497046403,-150.0,0.00041702,30]
[330486711,1719497046443,-150.0,0.00041723,30]
[330486712,1719497046484,-370.27180326,0.00041734,30]
[330486713,1719497046525,-180.40202542,0.00041734,30]
[330486714,1719497046564,-500000.0,0.0004175,60]
[330486715,1719497046603,-188304.8128,0.0004175,60]
[330486716,1719497046645,-150.0,0.00041755,30]
[330486717,1719497046684,-150.0,0.00041768,30]
[330486718,1719497046727,-370.27180326,0.0004178,30]
[330486719,1719497046766,-180.40202542,0.0004178,30]
[330486720,1719497046805,-150.0,0.00041808,30]
[330486721,1719497046845,-370.27180326,0.00041825,30]
[330486722,1719497046884,-180.40202542,0.00041825,30]
[330486723,1719497046925,-150.0,0.00041861,30]